fUST/lending_fUST_20250914
["ID","MTS","AMOUNT","RATE_DAILY","PERIOD"]
[385385833,1757811042382,-480.0,0.00024657,3]
[385385834,1757811042391,-480.0,0.00024657,3]
[385385835,1757811042402,-480.0,0.00024657,3]
[385385836,1757811042411,-480.0,0.00024657,3]
[385385837,1757811042420,-480.0,0.00024657,3]
[385385838,1757811042429,-480.0,0.00024657,3]
[385385839,1757811042439,-480.0,0.00024657,3]
[385385840,1757811042448,-480.0,0.00024657,3]
[385385841,1757811042457,-480.0,0.00024657,3]
[385385842,1757811042467,-480.0,0.00024657,3]
[385385843,1757811042476,-480.0,0.00024657,3]
[385385844,1757811042485,-480.0,0.00024657,3]
[385385845,1757811042495,-480.0,0.00024657,3]
[385385846,1757811042504,-563.84,0.00024657,3]
[385385847,1757811042513,-781.68,0.00024657,3]
[385385848,1757811042524,-480.0,0.00024657,3]
[385385849,1757811042534,-480.0,0.00024657,3]
[385385850,1757811042543,-480.0,0.00024657,3]
[385385851,1757811042553,-341.44442644,0.00024657,3]
[385385852,1757811042562,-480.0,0.00024657,3]
[385385853,1757811042571,-480.0,0.00024657,3]
[385385854,1757811042580,-480.0,0.00024657,3]
[385385855,1757811042590,-446.03132773,0.00024657,3]
[385385856,1757811042599,-1000.0,0.00024657,3]
[385385857,1757811042609,-480.0,0.00024657,3]
[385385858,1757811042618,-520.20843973,0.00024657,3]
[385385859,1757811042627,-480.0,0.00024657,3]
[385385860,1757811042637,-480.0,0.00024657,3]
[385385861,1757811042646,-480.0,0.00024657,3]
[385385862,1757811042655,-480.0,0.00024657,3]
[385385863,1757811042664,-480.0,0.00024657,3]
[385385864,1757811042674,-480.0,0.00024657,3]
[385385865,1757811042683,-480.0,0.00024657,3]
[385385866,1757811042692,-482.27412541,0.00024657,3]
[385385867,1757811042701,-480.0,0.00024657,3]
[385385868,1757811042710,-480.0,0.00024657,3]
[385385869,1757811042720,-1605.53,0.00024657,3]
[385385870,1757811042729,-480.0,0.00024657,3]
[385385871,1757811042738,-480.0,0.00024657,3]
[385385872,1757811042748,-480.0,0.00024657,3]
[385385873,1757811042757,-480.0,0.00024657,3]
[385385874,1757811042766,-480.0,0.00024657,3]
[385385875,1757811042777,-480.0,0.00024657,3]
[385385876,1757811042786,-480.0,0.00024657,3]
[385385877,1757811042796,-480.0,0.00024657,3]
[385385878,1757811042805,-502.93,0.00024657,3]
[385385879,1757811042814,-480.0,0.00024657,3]
[385385880,1757811042823,-614.25,0.00024657,3]
[385385881,1757811042832,-444.30066643,0.00024657,3]
[385385882,1757811042842,-482.61486855,0.00024657,3]
[385385883,1757811042852,-480.0,0.00024657,3]
[385385884,1757811042861,-480.0,0.00024657,3]
[385385885,1757811042870,-480.0,0.00024657,3]
[385385886,1757811042880,-480.0,0.00024657,3]
[385385887,1757811042889,-200.0,0.00024657,3]
[385385888,1757811042899,-480.0,0.00024657,3]
[385385889,1757811042908,-480.0,0.00024657,3]
[385385890,1757811042917,-480.0,0.00024657,3]
[385385891,1757811042926,-481.83140355,0.00024657,3]
[385385892,1757811042935,-480.0,0.00024657,3]
[385385893,1757811042945,-480.0,0.00024657,3]
[385385894,1757811042955,-480.0,0.00024657,3]
[385385895,1757811042964,-480.0,0.00024657,3]
[385385896,1757811042974,-465.96663996,0.00024657,3]
[385385897,1757811042983,-480.0,0.00024657,3]
[385385898,1757811042992,-480.0,0.00024657,3]
[385385899,1757811043002,-837.44,0.00024657,3]
[385385900,1757811043012,-756.79,0.00024657,3]
[385385901,1757811043023,-480.0,0.00024657,3]
[385385902,1757811043033,-400.0,0.00024657,3]
[385385903,1757811043043,-480.0,0.00024657,3]
[385385904,1757811043053,-480.0,0.00024657,3]
[385385905,1757811043063,-480.0,0.00024657,3]
[385385906,1757811043073,-480.0,0.00024657,3]
[385385907,1757811043083,-481.48597341,0.00024657,3]
[385385908,1757811043093,-480.0,0.00024657,3]
[385385909,1757811043103,-480.0,0.00024657,3]
[385385911,1757811043118,-480.0,0.00024657,3]
[385385913,1757811043128,-480.0,0.00024657,3]
[385385915,1757811043137,-480.0,0.00024657,3]
[385385917,1757811043147,-480.0,0.00024657,3]
[385385919,1757811043157,-480.0,0.00024657,3]
[385385921,1757811043167,-480.0,0.00024657,3]
[385385923,1757811043176,-480.0,0.00024657,3]
[385385925,1757811043186,-480.0,0.00024657,3]
[385385927,1757811043197,-1003.16,0.00024657,3]
[385385929,1757811043207,-534.75,0.00024657,3]
[385385931,1757811043217,-480.0,0.00024657,3]
[385385933,1757811043227,-1128.06,0.00024657,3]
[385385935,1757811043238,-480.0,0.00024657,3]
[385385937,1757811043247,-480.0,0.00024657,3]
[385385939,1757811043258,-480.0,0.00024657,3]
[385385944,1757811043271,-780.56,0.00024657,3]
[385385947,1757811043282,-480.0,0.00024657,3]
[385385949,1757811043291,-480.0,0.00024657,3]
[385385951,1757811043302,-2333.51,0.00024657,3]
[385385954,1757811043312,-480.0,0.00024657,3]
[385385956,1757811043322,-480.0,0.00024657,3]
[385385959,1757811043331,-500.0,0.00024657,3]
[385385963,1757811043341,-480.0,0.00024657,3]
[385385966,1757811043351,-480.0,0.00024657,3]
[385385968,1757811043361,-480.0,0.00024657,3]
[385385971,1757811043371,-480.0,0.00024657,3]
[385385974,1757811043382,-480.0,0.00024657,3]
[385385976,1757811043393,-480.0,0.00024657,3]
[385385978,1757811043402,-480.0,0.00024657,3]
[385385980,1757811043413,-480.0,0.00024657,3]
[385385982,1757811043422,-480.0,0.00024657,3]
[385385985,1757811043431,-480.0,0.00024657,3]
[385385986,1757811043441,-480.0,0.00024657,3]
[385385988,1757811043450,-480.0,0.00024657,3]
[385385990,1757811043461,-480.0,0.00024657,3]
[385385992,1757811043471,-480.0,0.00024657,3]
[385385994,1757811043480,-480.0,0.00024657,3]
[385385996,1757811043490,-480.0,0.00024657,3]
[385385998,1757811043499,-177.46757877,0.00024657,3]
[385386000,1757811043508,-480.0,0.00024657,3]
[385386002,1757811043517,-352.68535756,0.00024657,3]
[385386004,1757811043530,-502.33719935,0.00024657,3]
[385386006,1757811043540,-480.0,0.00024657,3]
[385386008,1757811043549,-228.88093049,0.00024657,3]
[385386009,1757811043558,-565.7,0.00024657,3]
[385386010,1757811043567,-522.93235906,0.00024657,3]
[385386011,1757811043577,-579.59,0.00024657,3]
[385386012,1757811043587,-480.0,0.00024657,3]
[385386013,1757811043596,-494.38,0.00024657,3]
[385386014,1757811043606,-480.0,0.00024657,3]
[385386015,1757811043615,-480.0,0.00024657,3]
[385386016,1757811043625,-480.0,0.00024657,3]
[385386017,1757811043634,-480.0,0.00024657,3]
[385386018,1757811043643,-480.0,0.00024657,3]
[385386019,1757811043653,-480.0,0.00024657,3]
[385386020,1757811043663,-480.0,0.00024657,3]
[385386021,1757811043673,-480.0,0.00024657,3]
[385386022,1757811043683,-209.77125205,0.00024657,3]
[385386023,1757811043692,-480.0,0.00024657,3]
[385386024,1757811043702,-480.0,0.00024657,3]
[385386025,1757811043712,-480.0,0.00024657,3]
[385386026,1757811043721,-480.0,0.00024657,3]
[385386027,1757811043730,-1267.02,0.00024657,3]
[385386028,1757811043739,-480.0,0.00024657,3]
[385386029,1757811043749,-893.94,0.00024657,3]
[385386030,1757811043758,-480.0,0.00024657,3]
[385386031,1757811043767,-480.0,0.00024657,3]
[385386032,1757811043779,-809.72,0.00024657,3]
[385386033,1757811043788,-480.0,0.00024657,3]
[385386035,1757811043797,-480.0,0.00024657,3]
[385386036,1757811043807,-480.0,0.00024657,3]
[385386037,1757811043815,-480.0,0.00024657,3]
[385386038,1757811043825,-480.0,0.00024657,3]
[385386039,1757811043834,-607.53062348,0.00024657,3]
[385386040,1757811043843,-480.0,0.00024657,3]
[385386041,1757811043852,-480.0,0.00024657,3]
[385386042,1757811043862,-827.45,0.00024657,3]
[385386043,1757811043871,-480.0,0.00024657,3]
[385386044,1757811043880,-480.0,0.00024657,3]
[385386045,1757811043890,-480.0,0.00024657,3]
[385386046,1757811043899,-480.0,0.00024657,3]
[385386047,1757811043909,-811.2,0.00024657,3]
[385386048,1757811043918,-480.0,0.00024657,3]
[385386049,1757811043927,-480.0,0.00024657,3]
[385386050,1757811043937,-480.0,0.00024657,3]
[385386051,1757811043946,-480.0,0.00024657,3]
[385386052,1757811043955,-480.0,0.00024657,3]
[385386053,1757811043965,-480.0,0.00024657,3]
[385386054,1757811043974,-480.0,0.00024657,3]
[385386055,1757811043983,-1005.86,0.00024657,3]
[385386056,1757811043993,-480.0,0.00024657,3]
[385386057,1757811044002,-1230.9,0.00024657,3]
[385386058,1757811044012,-480.0,0.00024657,3]
[385386059,1757811044023,-480.0,0.00024657,3]
[385386060,1757811044032,-480.0,0.00024657,3]
[385386061,1757811044043,-480.0,0.00024657,3]
[385386062,1757811044052,-794.45,0.00024657,3]
[385386063,1757811044062,-480.0,0.00024657,3]
[385386064,1757811044072,-480.0,0.00024657,3]
[385386065,1757811044081,-480.0,0.00024657,3]
[385386066,1757811044091,-480.0,0.00024657,3]
[385386067,1757811044100,-480.0,0.00024657,3]
[385386068,1757811044111,-480.0,0.00024657,3]
[385386069,1757811044123,-480.0,0.00024657,3]
[385386070,1757811044133,-480.0,0.00024657,3]
[385386071,1757811044143,-480.0,0.00024657,3]
[385386072,1757811044153,-480.0,0.00024657,3]
[385386073,1757811044162,-480.0,0.00024657,3]
[385386074,1757811044171,-480.0,0.00024657,3]
[385386075,1757811044180,-795.05,0.00024657,3]
[385386076,1757811044189,-831.17,0.00024657,3]
[385386077,1757811044198,-1146.09,0.00024657,3]
[385386078,1757811044208,-480.0,0.00024657,3]
[385386079,1757811044218,-480.0,0.00024657,3]
[385386080,1757811044227,-480.0,0.00024657,3]
[385386081,1757811044236,-480.0,0.00024657,3]
[385386082,1757811044245,-480.0,0.00024657,3]
[385386083,1757811044254,-427.31846168,0.00024657,3]
[385386084,1757811044264,-480.0,0.00024657,3]
[385386085,1757811044275,-480.0,0.00024657,3]
[385386086,1757811044284,-480.0,0.00024657,3]
[385386087,1757811044293,-480.0,0.00024657,3]
[385386088,1757811044302,-480.0,0.00024657,3]
[385386089,1757811044311,-615.84999281,0.00024657,3]
[385386090,1757811044321,-687.67,0.00024657,3]
[385386091,1757811044330,-480.0,0.00024657,3]
[385386092,1757811044339,-513.68448624,0.00024657,3]
[385386093,1757811044349,-480.0,0.00024657,3]
[385386094,1757811044358,-480.0,0.00024657,3]
[385386095,1757811044367,-480.0,0.00024657,3]
[385386096,1757811044376,-480.0,0.00024657,3]
[385386097,1757811044386,-480.0,0.00024657,3]
[385386098,1757811044395,-482.80431564,0.00024657,3]
[385386099,1757811044405,-514.69937042,0.00024657,3]
[385386100,1757811044414,-480.0,0.00024657,3]
[385386101,1757811044423,-620.28,0.00024657,3]
[385386102,1757811044433,-480.0,0.00024657,3]
[385386103,1757811044443,-480.0,0.00024657,3]
[385386104,1757811044452,-933.61,0.00024657,3]
[385386105,1757811044461,-725.2,0.00024657,3]
[385386106,1757811044470,-480.0,0.00024657,3]
[385386107,1757811044479,-491.89402871,0.00024657,3]
[385386108,1757811044488,-570.42,0.00024657,3]
[385386109,1757811044498,-480.0,0.00024657,3]
[385386110,1757811044508,-480.0,0.00024657,3]
[385386111,1757811044517,-882.07,0.00024657,3]
[385386112,1757811044528,-480.0,0.00024657,3]
[385386113,1757811044537,-472.27080301,0.00024657,3]
[385386114,1757811044546,-224.91874474,0.00024657,3]
[385386115,1757811044556,-527.02,0.00024657,3]
[385386116,1757811044565,-480.0,0.00024657,3]
[385386117,1757811044574,-927.08,0.00024657,3]
[385386118,1757811044583,-480.0,0.00024657,3]
[385386119,1757811044592,-480.0,0.00024657,3]
[385386120,1757811044602,-480.0,0.00024657,3]
[385386121,1757811044611,-480.0,0.00024657,3]
[385386122,1757811044621,-480.0,0.00024657,3]
[385386123,1757811044630,-480.0,0.00024657,3]
[385386124,1757811044639,-480.0,0.00024657,3]
[385386125,1757811044649,-1231.39,0.00024657,3]
[385386126,1757811044658,-610.06466493,0.00024657,3]
[385386127,1757811044667,-480.0,0.00024657,3]
[385386128,1757811044677,-4716.05,0.00024657,3]
[385386129,1757811044686,-505.52795029,0.00024657,3]
[385386130,1757811044695,-480.0,0.00024657,3]
[385386131,1757811044706,-480.0,0.00024657,3]
[385386132,1757811044717,-480.0,0.00024657,3]
[385386133,1757811044727,-480.0,0.00024657,3]
[385386134,1757811044737,-1025.36,0.00024657,3]
[385386135,1757811044755,-480.0,0.00024657,3]
[385386136,1757811044773,-480.0,0.00024657,3]
[385386137,1757811044783,-480.0,0.00024657,3]
[385386138,1757811044792,-193.67201749,0.00024657,3]
[385386139,1757811044802,-480.0,0.00024657,3]
[385386140,1757811044811,-949.17,0.00024657,3]
[385386141,1757811044821,-480.0,0.00024657,3]
[385386142,1757811044830,-480.0,0.00024657,3]
[385386143,1757811044839,-889.49,0.00024657,3]
[385386144,1757811044848,-480.0,0.00024657,3]
[385386145,1757811044859,-480.0,0.00024657,3]
[385386146,1757811044868,-480.0,0.00024657,3]
[385386147,1757811045018,-3520.66,0.00024657,3]
[385386148,1757811045029,-581.84,0.00024657,3]
[385386149,1757811045039,-480.0,0.00024657,3]
[385386150,1757811045049,-480.0,0.00024657,3]
[385386151,1757811045058,-480.0,0.00024657,3]
[385386152,1757811045068,-480.0,0.00024657,3]
[385386153,1757811045078,-1078.92,0.00024657,3]
[385386154,1757811045087,-480.0,0.00024657,3]
[385386155,1757811045096,-480.0,0.00024657,3]
[385386156,1757811045106,-480.0,0.00024657,3]
[385386157,1757811045118,-480.0,0.00024657,3]
[385386158,1757811045127,-480.0,0.00024657,3]
[385386159,1757811045137,-1437.79,0.00024657,3]
[385386160,1757811045146,-650.39,0.00024657,3]
[385386161,1757811045155,-1497.57,0.00024657,3]
[385386162,1757811045165,-480.0,0.00024657,3]
[385386163,1757811045174,-480.0,0.00024657,3]
[385386164,1757811045183,-480.0,0.00024657,3]
[385386165,1757811045194,-1248.69,0.00024657,3]
[385386166,1757811045203,-17837.96,0.00024657,3]
[385386167,1757811045212,-299.21425633,0.00024657,3]
[385386168,1757811045221,-480.0,0.00024657,3]
[385386169,1757811045229,-480.0,0.00024657,3]
[385386170,1757811045238,-480.0,0.00024657,3]
[385386171,1757811045247,-480.0,0.00024657,3]
[385386172,1757811045257,-955.12,0.00024657,3]
[385386173,1757811045266,-480.0,0.00024657,3]
[385386174,1757811045276,-1757.16,0.00024657,3]
[385386175,1757811045285,-480.0,0.00024657,3]
[385386176,1757811045294,-590.69,0.00024657,3]
[385386177,1757811045303,-480.0,0.00024657,3]
[385386178,1757811045312,-480.0,0.00024657,3]
[385386179,1757811045321,-7985.58,0.00024657,3]
[385386180,1757811045330,-480.0,0.00024657,3]
[385386181,1757811045339,-480.0,0.00024657,3]
[385386182,1757811045349,-738.71,0.00024657,3]
[385386183,1757811045358,-480.0,0.00024657,3]
[385386184,1757811045367,-1655.62,0.00024657,3]
[385386185,1757811045376,-480.0,0.00024657,3]
[385386186,1757811045386,-540.23,0.00024657,3]
[385386187,1757811045396,-3941.93,0.00024657,3]
[385386188,1757811045405,-546.96244475,0.00024657,3]
[385386189,1757811045415,-480.0,0.00024657,3]
[385386190,1757811045424,-480.0,0.00024657,3]
[385386191,1757811045433,-480.0,0.00024657,3]
[385386192,1757811045442,-483.45742692,0.00024657,3]
[385386193,1757811045453,-480.0,0.00024657,3]
[385386194,1757811045462,-3359.27,0.00024657,3]
[385386195,1757811045471,-480.0,0.00024657,3]
[385386196,1757811045480,-2455.48,0.00024657,3]
[385386197,1757811045490,-480.0,0.00024657,3]
[385386198,1757811045499,-986.39,0.00024657,3]
[385386199,1757811045509,-480.0,0.00024657,3]
[385386200,1757811045519,-1116.15,0.00024657,3]
[385386201,1757811045529,-480.0,0.00024657,3]
[385386202,1757811045539,-480.0,0.00024657,3]
[385386203,1757811045548,-480.0,0.00024657,3]
[385386204,1757811045557,-507.62,0.00024657,3]
[385386205,1757811045567,-480.0,0.00024657,3]
[385386206,1757811045587,-705.01,0.00024657,3]
[385386207,1757811045598,-1095.61,0.00024657,3]
[385386208,1757811045607,-1577.13,0.00024657,3]
[385386209,1757811045617,-480.0,0.00024657,3]
[385386210,1757811045627,-603.75,0.00024657,3]
[385386211,1757811045637,-644.31,0.00024657,3]
[385386212,1757811045647,-650.4,0.00024657,3]
[385386213,1757811045657,-480.0,0.00024657,3]
[385386214,1757811045667,-639.59,0.00024657,3]
[385386215,1757811045678,-480.0,0.00024657,3]
[385386216,1757811045688,-3868.17,0.00024657,3]
[385386217,1757811045697,-480.0,0.00024657,3]
[385386218,1757811045707,-4586.44,0.00024657,3]
[385386219,1757811045722,-230.24,0.00024657,3]
[385386220,1757811045736,-480.0,0.00024657,3]
[385386221,1757811045746,-480.0,0.00024657,3]
[385386222,1757811045756,-480.0,0.00024657,3]
[385386223,1757811045767,-2541.27,0.00024657,3]
[385386224,1757811045779,-480.0,0.00024657,3]
[385386225,1757811045791,-8293.78,0.00024657,3]
[385386226,1757811045802,-480.0,0.00024657,3]
[385386227,1757811045812,-480.0,0.00024657,3]
[385386228,1757811045822,-608.63,0.00024657,3]
[385386229,1757811045832,-480.0,0.00024657,3]
[385386230,1757811045842,-480.0,0.00024657,3]
[385386231,1757811045852,-480.0,0.00024657,3]
[385386232,1757811045862,-480.0,0.00024657,3]
[385386233,1757811045872,-480.0,0.00024657,3]
[385386234,1757811045882,-1593.64,0.00024657,3]
[385386235,1757811045892,-480.0,0.00024657,3]
[385386236,1757811045901,-480.0,0.00024657,3]
[385386237,1757811045911,-480.0,0.00024657,3]
[385386238,1757811045921,-480.0,0.00024657,3]
[385386239,1757811045930,-480.0,0.00024657,3]
[385386240,1757811045940,-480.0,0.00024657,3]
[385386241,1757811045949,-480.0,0.00024657,3]
[385386242,1757811045959,-480.0,0.00024657,3]
[385386243,1757811045968,-480.0,0.00024657,3]
[385386244,1757811045978,-480.0,0.00024657,3]
[385386245,1757811045989,-480.0,0.00024657,3]
[385386246,1757811045999,-480.0,0.00024657,3]
[385386247,1757811046009,-480.0,0.00024657,3]
[385386248,1757811046018,-555.97543209,0.00024657,3]
[385386249,1757811046029,-585.73,0.00024657,3]
[385386250,1757811046039,-480.0,0.00024657,3]
[385386251,1757811046048,-480.0,0.00024657,3]
[385386252,1757811046057,-1742.87,0.00024657,3]
[385386253,1757811046067,-480.0,0.00024657,3]
[385386254,1757811046077,-480.0,0.00024657,3]
[385386255,1757811046087,-1538.86,0.00024657,3]
[385386256,1757811046096,-1296.33,0.00024657,3]
[385386257,1757811046107,-480.0,0.00024657,3]
[385386258,1757811046120,-480.0,0.00024657,3]
[385386259,1757811046129,-480.0,0.00024657,3]
[385386260,1757811046139,-5589.59,0.00024657,3]
[385386261,1757811046148,-480.0,0.00024657,3]
[385386262,1757811046158,-2658.64,0.00024657,3]
[385386263,1757811046168,-480.0,0.00024657,3]
[385386264,1757811046178,-480.0,0.00024657,3]
[385386265,1757811046188,-960.73,0.00024657,3]
[385386266,1757811046198,-3036.5,0.00024657,3]
[385386267,1757811046209,-480.0,0.00024657,3]
[385386268,1757811046218,-586.19,0.00024657,3]
[385386269,1757811046228,-1689.71,0.00024657,3]
[385386270,1757811046237,-480.0,0.00024657,3]
[385386271,1757811046247,-480.0,0.00024657,3]
[385386272,1757811046257,-480.0,0.00024657,3]
[385386273,1757811046266,-480.0,0.00024657,3]
[385386274,1757811046277,-480.0,0.00024657,3]
[385386275,1757811046286,-673.49,0.00024657,3]
[385386276,1757811046296,-480.0,0.00024657,3]
[385386277,1757811046305,-501.87,0.00024657,3]
[385386278,1757811046315,-480.0,0.00024657,3]
[385386279,1757811046324,-894.89,0.00024657,3]
[385386280,1757811046333,-480.0,0.00024657,3]
[385386281,1757811046343,-579.02,0.00024657,3]
[385386282,1757811046353,-480.0,0.00024657,3]
[385386283,1757811046362,-15064.65,0.00024657,3]
[385386284,1757811046371,-480.0,0.00024657,3]
[385386285,1757811046380,-480.0,0.00024657,3]
[385386286,1757811046389,-480.0,0.00024657,3]
[385386287,1757811046399,-480.0,0.00024657,3]
[385386288,1757811046409,-621.03,0.00024657,3]
[385386289,1757811046418,-480.0,0.00024657,3]
[385386290,1757811046427,-480.0,0.00024657,3]
[385386291,1757811046436,-606.7,0.00024657,3]
[385386292,1757811046445,-480.0,0.00024657,3]
[385386294,1757811046454,-488.94718418,0.00024657,3]
[385386295,1757811046464,-5372.69,0.00024657,3]
[385386296,1757811046473,-480.0,0.00024657,3]
[385386297,1757811046483,-480.0,0.00024657,3]
[385386298,1757811046492,-480.0,0.00024657,3]
[385386299,1757811046502,-2464.55,0.00024657,3]
[385386301,1757811046512,-1511.04,0.00024657,3]
[385386303,1757811046522,-480.0,0.00024657,3]
[385386305,1757811046531,-480.0,0.00024657,3]
[385386307,1757811046540,-4223.43,0.00024657,3]
[385386309,1757811046550,-482.02396838,0.00024657,3]
[385386311,1757811046560,-480.0,0.00024657,3]
[385386313,1757811046569,-964.16,0.00024657,3]
[385386315,1757811046578,-480.0,0.00024657,3]
[385386317,1757811046588,-3210.18,0.00024657,3]
[385386319,1757811046597,-157.0,0.00024658,2]
[385386321,1757811046607,-500.0,0.00024673,2]
[385386323,1757811046616,-500.0,0.00024673,2]
[385386325,1757811046626,-500.0,0.00024673,2]
[385386327,1757811046635,-500.0,0.00024673,2]
[385386329,1757811046644,-230.35392,0.000247,2]
[385386331,1757811046658,-260.0,0.00024746,2]
[385386333,1757811046668,-277.0,0.000248,2]
[385386335,1757811046677,-500.0,0.00024884,2]
[385386337,1757811046687,-157.0,0.00024884,2]
[385386339,1757811046696,-915.0,0.00024884,2]
[385386341,1757811046705,-500.0,0.00024884,2]
[385386343,1757811046714,-1045.58107902,0.00024896,2]
[385386345,1757811046724,-230.35392,0.000249,2]
[385386347,1757811046733,-5128.22938099,0.000249,2]
[385386395,1757811047187,-480.0,0.00024657,3]
[385386397,1757811047197,-454.0,0.000248,2]
[385386408,1757811815745,-247.17248557,0.00018736,2]
[385386409,1757811840114,1240.33415763,0.00018221,2]
[385386413,1757812030192,4288.98115298,0.00018221,2]
[385386464,1757812232162,-303.05757821,0.000189,2]
[385386467,1757812232172,-454.09136318,0.000189,2]
[385386469,1757812232181,-184.83870368,0.00019089,2]
[385386470,1757812232191,-871.31791183,0.000199,2]
[385386472,1757812232200,-151.5272737,0.0002,2]
[385386475,1757812232210,-871.31791171,0.00021149,2]
[385386477,1757812232219,-871.31791171,0.00022398,2]
[385386479,1757812232229,-871.31791171,0.00023647,2]
[385386481,1757812232238,-1136.20531378,0.0002382,2]
[385386482,1757812232248,-300.0,0.00023989,2]
[385386485,1757812232257,-15954.4360832,0.0002399,2]
[385386542,1757812239990,-339.46694495,0.0002399,2]
[385386549,1757812240050,-9269.43418213,0.0002399,2]
[385386551,1757812240059,-160.0,0.00024143,2]
[385386554,1757812240069,-409.0,0.00024343,2]
[385386556,1757812240079,-412.71771727,0.00024556,2]
[385386558,1757812240088,-311.39903945,0.00024556,2]
[385386560,1757812240097,-500.0,0.00024556,2]
[385386561,1757812240106,-110619.43516942,0.00024557,2]
[385386600,1757812246299,-755.1421904,0.000199,2]
[385386601,1757812246309,-755.14219014,0.00021149,2]
[385386602,1757812246319,-755.14219014,0.00022398,2]
[385386603,1757812246328,-755.14219014,0.00023647,2]
[385386604,1757812246337,-374.05345958,0.00024471,2]
[385386605,1757812246347,-11605.3777796,0.00024557,2]
[385386607,1757812476409,1532.12386998,0.00030001,55]
[385386619,1757813077357,1388.69390709,0.00030006,120]
[385386621,1757813225421,168.11572137,0.00017878,2]
[385386622,1757813284980,168.11572136,0.00017878,2]
[385386625,1757813345081,168.11572137,0.00017878,2]
[385386628,1757813405430,168.11572136,0.00017878,2]
[385386673,1757813432347,-654.45656502,0.000199,2]
[385386675,1757813432356,-654.45656478,0.00021149,2]
[385386677,1757813432366,-1000.0,0.00022233,2]
[385386679,1757813432375,-654.45656478,0.00022398,2]
[385386681,1757813432384,-654.45656478,0.00023647,2]
[385386683,1757813432393,-681.72318826,0.0002382,2]
[385386686,1757813432402,-300.0,0.00023998,2]
[385386689,1757813432411,-300.0,0.00023998,2]
[385386692,1757813432420,-210.0,0.00023998,2]
[385386694,1757813432430,-1200.0,0.00023998,2]
[385386696,1757813432439,-3048.02248213,0.00024,2]
[385386698,1757813432448,-5392.89492072,0.00024,2]
[385386700,1757813432457,-160.0,0.00024045,2]
[385386702,1757813432467,-976.0,0.00024169,2]
[385386704,1757813432476,-1299.5070685,0.00024355,2]
[385386706,1757813432485,-7242.0202646,0.00024355,2]
[385386708,1757813432494,-188.5028093,0.00024416,2]
[385386710,1757813432503,-192.4779736,0.00024416,2]
[385386712,1757813432512,-234.55860156,0.00024442,2]
[385386714,1757813432522,-562.93904027,0.00024456,2]
[385386716,1757813432531,-24567.63007122,0.00024457,2]
[385386718,1757813432543,-1161.69215809,0.00024457,2]
[385386720,1757813432554,-868.312121,0.00024457,2]
[385386849,1757813438295,-410.0,0.00024169,2]
[385386850,1757813438306,-13665.01987791,0.00024457,2]
[385386856,1757813438432,-534.94906441,0.00024457,2]
[385386859,1757813438444,-1372.13797745,0.00024457,2]
[385386861,1757813438455,-294.54076015,0.00024457,2]
[385386956,1757813774795,1624.95812508,0.00030007,120]
[385386971,1757814418446,156.67073343,0.00030031,120]